bitfinex/quotes_BTCUSD_20250716
["timestamp","ask_amount","ask_price","bid_price","bid_amount"]
[1752697625175,0.78863442,119500.0,119490.0,3.89759493]
[1752697625850,0.82993442,119500.0,119490.0,3.89759493]
[1752697626280,0.83430485,119500.0,119490.0,3.89759493]
[1752697629843,0.83430485,119500.0,119490.0,3.89758752]
[1752697631559,0.83212485,119500.0,119490.0,3.89758752]
[1752697631772,0.83244485,119500.0,119490.0,3.89758752]
[1752697632222,0.39853297,119500.0,119490.0,4.07333437]
[1752697632456,0.39853297,119500.0,119490.0,4.07655437]
[1752697632902,0.39853297,119500.0,119490.0,4.52116494]
[1752697632903,0.43945198,119500.0,119490.0,4.52116494]
[1752697633119,0.4434494,119500.0,119490.0,4.52953356]
[1752697633353,0.4434494,119500.0,119490.0,4.13720168]
[1752697633981,0.43508155,119500.0,119490.0,4.13720168]
[1752697634404,0.43508155,119500.0,119490.0,4.14557023]
[1752697634405,0.26771754,119500.0,119490.0,4.14557023]
[1752697634612,0.27608574,119500.0,119490.0,4.14557023]
[1752697635044,0.26771754,119500.0,119490.0,4.14557016]
[1752697635269,0.44344975,119500.0,119490.0,4.12883313]
[1752697636656,0.44344975,119500.0,119490.0,4.12046437]
[1752697637189,0.44344975,119500.0,119490.0,4.12883313]
[1752697637602,0.44344975,119500.0,119490.0,4.13720182]
[1752697637858,0.44344975,119500.0,119490.0,4.12883313]
[1752697638065,0.44344975,119500.0,119490.0,4.13720182]
[1752697638282,0.44344975,119500.0,119490.0,4.14557044]
[1752697638529,0.43508169,119500.0,119490.0,4.09169321]
[1752697638738,0.43508169,119500.0,119490.0,4.07019321]
[1752697639164,0.43492169,119500.0,119490.0,4.07856204]
[1752697639577,0.43492169,119500.0,119490.0,4.0869308]
[1752697639757,0.43492169,119500.0,119490.0,4.10006204]
[1752697640163,0.43492169,119500.0,119490.0,4.10006211]
[1752697640353,0.43492169,119500.0,119490.0,4.10843094]
[1752697640831,0.43492169,119500.0,119490.0,4.09169321]
[1752697641174,0.43492169,119500.0,119490.0,4.10006211]
[1752697641401,0.43492169,119500.0,119490.0,4.09169321]
[1752697641570,0.42687356,119500.0,119490.0,4.07019321]
[1752697641754,0.81920544,119500.0,119490.0,3.90281519]
[1752697641967,0.42687356,119500.0,119490.0,4.07019321]
[1752697642567,0.42687356,119500.0,119490.0,4.07856211]
[1752697642738,0.42687356,119500.0,119490.0,3.90080519]
[1752697642949,0.42687356,119500.0,119490.0,4.06818321]
[1752697643578,0.41850536,119500.0,119490.0,3.90080519]
[1752697643774,0.81083724,119500.0,119490.0,3.89758519]
[1752697643994,0.25324451,119500.0,119490.0,3.89758519]
[1752697644200,0.79605639,119500.0,119490.0,4.07333211]
[1752697644403,0.81059724,119500.0,119490.0,4.06818321]
[1752697646066,0.41826536,119500.0,119490.0,4.06818321]
[1752697646293,0.41826536,119500.0,119490.0,3.89758519]
[1752697646511,0.45846536,119500.0,119490.0,3.89758519]
[1752697646724,0.81059724,119500.0,119490.0,4.06496321]
[1752697646923,0.81059724,119500.0,119490.0,3.89758519]
[1752697647124,1.0066719,119500.0,119490.0,4.06818321]
[1752697647390,0.72888454,119500.0,119490.0,4.10827685]
[1752697647613,0.72888454,119500.0,119490.0,4.1126394]
[1752697647826,0.72888454,119500.0,119490.0,4.12937699]
[1752697648033,0.40267247,119500.0,119490.0,4.13774568]
[1752697648251,0.28397303,119500.0,119490.0,4.44868612]
[1752697648459,0.27560483,119500.0,119490.0,4.44868542]
[1752697648649,0.27560483,119500.0,119490.0,4.15448215]
[1752697648921,0.28397296,119500.0,119490.0,4.14611374]
[1752697649126,0.27552483,119500.0,119490.0,4.13774526]
[1752697649330,0.5697281,119500.0,119490.0,4.13774526]
[1752697649618,0.5697281,119500.0,119490.0,4.14611374]
[1752697649935,0.58646436,119500.0,119490.0,4.13774575]
[1752697650083,0.74546073,119500.0,119490.0,4.12100948]
[1752697650293,0.57809672,119500.0,119490.0,4.13774707]
[1752697650539,0.57809672,119500.0,119490.0,4.12937831]
[1752697650710,0.57809672,119500.0,119490.0,4.13774707]
[1752697650908,0.56972852,119500.0,119490.0,4.15448438]
[1752697651083,0.57809672,119500.0,119490.0,4.14611576]
[1752697651263,0.56972852,119500.0,119490.0,4.15448438]
[1752697651478,0.56972852,119500.0,119490.0,4.14611548]
[1752697651947,0.57809665,119500.0,119490.0,4.14611548]
[1752697652866,0.56136011,119500.0,119490.0,4.15448354]
[1752697653076,0.56972803,119500.0,119490.0,4.14611513]
[1752697653749,0.57809609,119500.0,119490.0,4.14611513]
[1752697653940,0.57809609,119500.0,119490.0,4.13774665]
[1752697654135,0.73709204,119500.0,119490.0,4.15448368]
[1752697654335,0.7454601,119500.0,119490.0,4.1461152]
[1752697655168,0.7554601,119500.0,119490.0,4.1461152]
[1752697655595,0.73872461,119500.0,119490.0,4.13774665]
[1752697655794,0.73872461,119500.0,119490.0,4.12221112]
[1752697656003,0.73872461,119500.0,119490.0,4.1377455]
[1752697657586,0.73872461,119500.0,119490.0,4.14611405]
[1752697658100,0.73872461,119500.0,119490.0,4.14611415]
[1752697658314,0.44452134,119500.0,119490.0,4.15448263]
[1752697658535,0.45288947,119500.0,119490.0,4.15448263]
[1752697658815,0.74709274,119500.0,119490.0,4.15448263]
[1752697659041,0.60514094,119500.0,119490.0,4.1377456]
[1752697659261,0.75506094,119500.0,119490.0,4.1377456]
[1752697659668,0.74669302,119500.0,119490.0,4.12100829]
[1752697659804,0.74669302,119500.0,119490.0,4.12937698]
[1752697660014,0.74669302,119500.0,119490.0,4.1377456]
[1752697660828,0.74669302,119500.0,119490.0,4.12937698]
[1752697661420,0.74669302,119500.0,119490.0,4.12100829]
[1752697661679,0.73832496,119500.0,119490.0,4.11263953]
[1752697661898,0.73832496,119500.0,119490.0,4.1210159]
[1752697662776,0.73832496,119500.0,119490.0,4.12938473]
[1752697663203,0.72995683,119500.0,119490.0,3.94526898]
[1752697664588,0.72995683,119500.0,119490.0,3.92972703]
[1752697664782,0.72995683,119500.0,119490.0,3.94526955]
[1752697664994,0.43575356,119500.0,119490.0,4.12101647]
[1752697665205,0.58003683,119500.0,119490.0,4.12101647]
[1752697665400,0.72967683,119500.0,119490.0,3.94526955]
[1752697665612,0.72967683,119500.0,119490.0,4.12101647]
[1752697666216,0.43547356,119500.0,119490.0,4.13775406]
[1752697666430,0.72967683,119500.0,119490.0,4.13775406]
[1752697666645,0.72967683,119500.0,119490.0,4.1293853]
[1752697666858,0.72130863,119500.0,119490.0,3.94526955]
[1752697667613,0.72130863,119500.0,119490.0,4.12101909]
[1752697668291,0.72130863,119500.0,119490.0,3.94527217]
[1752697668719,0.42710536,119500.0,119490.0,3.94527217]
[1752697669152,0.72130863,119500.0,119490.0,3.94527217]
[1752697669787,0.72130863,119500.0,119490.0,3.95364107]
[1752697670009,0.72130863,119500.0,119490.0,4.13775668]
[1752697670434,0.72967683,119500.0,119490.0,4.14612537]
[1752697670650,0.72947683,119500.0,119490.0,4.15449399]
[1752697671060,0.72947683,119500.0,119490.0,4.15449364]
[1752697671061,0.44364155,119500.0,119490.0,4.15449364]
[1752697671261,0.73784482,119500.0,119490.0,4.15449364]
[1752697671461,0.44364155,119500.0,119490.0,4.15449364]
[1752697671665,0.73784482,119500.0,119490.0,4.14612509]
[1752697672616,0.73784482,119500.0,119490.0,4.15449364]
[1752697673406,0.44364155,119500.0,119490.0,4.13057995]
[1752697673629,0.73784482,119500.0,119490.0,4.14612543]
[1752697674186,0.73784482,119500.0,119490.0,4.15449398]
[1752697674394,0.44364155,119500.0,119490.0,4.15449398]
[1752697674602,0.73784482,119500.0,119490.0,4.15449398]
[1752697675344,0.73784482,119500.0,119490.0,4.14612543]
[1752697675548,0.58840482,119500.0,119490.0,4.14612543]
[1752697675746,0.73768482,119500.0,119490.0,4.14612543]
[1752697676151,0.14920859,119500.0,119490.0,4.44869711]
[1752697676369,0.15130356,119500.0,119490.0,4.44869711]
[1752697677055,0.14920859,119500.0,119490.0,4.44869711]
[1752697677476,0.14916859,119500.0,119490.0,4.44869711]
[1752697677931,0.14916859,119500.0,119490.0,4.15449384]
[1752697678149,0.14916859,119500.0,119490.0,4.44869711]
[1752697678362,0.14916859,119500.0,119490.0,4.15449384]
[1752697678607,0.14916859,119500.0,119490.0,4.44869711]
[1752697680258,0.15126356,119500.0,119490.0,4.44869711]
[1752697680722,0.14916859,119500.0,119490.0,4.44869711]
[1752697680953,0.15118356,119500.0,119490.0,4.44869711]
[1752697681210,0.14908859,119500.0,119490.0,4.44869711]
[1752697681413,0.14908859,119500.0,119490.0,4.43315163]
[1752697681694,0.14908859,119500.0,119490.0,4.44870399]
[1752697681990,0.14908859,119500.0,119490.0,4.43315163]
[1752697682222,0.14908859,119500.0,119490.0,4.44870628]
[1752697682905,8.59e-06,119500.0,119490.0,4.44870628]
[1752697683345,8.59e-06,119500.0,119490.0,5.52603282]
[1752697683570,1e-08,119510.0,119500.0,1.46118929]
[1752697683790,0.01184263,119520.0,119510.0,0.19245167]
[1752697684062,0.01184263,119520.0,119510.0,0.99746286]
[1752697684495,0.00684263,119520.0,119510.0,0.99746286]
[1752697685153,0.00684263,119520.0,119510.0,0.80096852]
[1752697686036,0.00684263,119520.0,119510.0,0.40905632]
[1752697686254,0.00684263,119520.0,119510.0,1.14096852]
[1752697686521,0.00684263,119520.0,119510.0,1.53288072]
[1752697686769,0.002,119530.0,119520.0,0.24043557]
[1752697687063,0.002,119530.0,119520.0,0.80163242]
[1752697687352,0.002,119530.0,119520.0,1.38474462]
[1752697687636,0.002,119530.0,119520.0,1.14159242]
[1752697687894,0.002,119530.0,119520.0,1.53350462]
[1752697688439,0.01537678,119550.0,119540.0,0.97121557]
[1752697688713,0.01552752,119550.0,119540.0,1.13745022]
[1752697688971,0.01552752,119550.0,119540.0,1.14042022]
[1752697689441,0.01552752,119550.0,119540.0,2.9655045]
[1752697689986,0.01552752,119550.0,119540.0,2.9654086]
[1752697690766,0.01552752,119550.0,119540.0,2.96539064]
[1752697691242,0.01552752,119550.0,119540.0,2.96839064]
[1752697693583,0.01552752,119550.0,119540.0,2.80986964]
[1752697695515,0.01552752,119550.0,119540.0,0.75107416]
[1752697695732,0.01552752,119550.0,119540.0,1.14298636]
[1752697696181,0.01552752,119550.0,119540.0,1.1682002]
[1752697696805,0.0054925,119550.0,119540.0,1.1682002]
[1752697698536,0.0054925,119550.0,119540.0,1.16815359]
[1752697699217,0.0054925,119550.0,119540.0,1.168154]
[1752697701245,0.0054925,119550.0,119540.0,1.25366428]
[1752697702205,0.01491092,119570.0,119560.0,1.02619558]
[1752697702420,0.0154132,119570.0,119560.0,1.19171017]
[1752697702639,0.0154132,119570.0,119560.0,1.19475017]
[1752697702847,0.0154132,119570.0,119560.0,1.53475017]
[1752697703917,0.0154132,119570.0,119560.0,1.53775017]
[1752697704134,0.0154132,119570.0,119560.0,1.14583797]
[1752697704790,0.0154132,119570.0,119560.0,0.75392577]
[1752697704989,0.0154132,119570.0,119560.0,1.53775017]
[1752697705614,0.0154132,119570.0,119560.0,1.14583797]
[1752697706843,0.0154132,119570.0,119560.0,1.15493209]
[1752697707280,0.0154132,119570.0,119560.0,1.15494512]
[1752697707825,0.0154132,119570.0,119560.0,1.1549427]
[1752697708027,0.0154132,119570.0,119560.0,1.5468549]
[1752697708235,0.0154132,119570.0,119560.0,1.54686148]
[1752697709401,0.00137897,119570.0,119560.0,1.54686148]
[1752697711235,0.00137897,119570.0,119560.0,0.76303708]
[1752697711434,0.00137897,119570.0,119560.0,1.54686148]
[1752697711663,0.00137897,119570.0,119560.0,2.55320848]
[1752697711913,0.00137897,119570.0,119560.0,1.76938408]
[1752697712176,0.002,119590.0,119580.0,0.192339]
[1752697712433,0.0021506,119590.0,119580.0,0.79868298]
[1752697712678,0.0021506,119590.0,119580.0,0.80172298]
[1752697714419,0.0021506,119590.0,119580.0,0.80164298]
[1752697716195,0.0021506,119590.0,119580.0,0.80169325]
[1752697717895,0.0021506,119590.0,119580.0,0.80149325]
[1752697719450,0.00576258,119600.0,119590.0,0.19232292]
[1752697719689,0.00576258,119600.0,119590.0,0.74913717]
[1752697719954,0.00576258,119600.0,119590.0,0.36026497]
[1752697720217,0.01412322,119600.0,119590.0,0.36026497]
[1752697720463,0.00576258,119600.0,119590.0,0.75217717]
[1752697721514,0.01412315,119600.0,119590.0,0.75217717]
[1752697722043,0.00576258,119600.0,119590.0,0.75217717]
[1752697722377,0.03773599,119610.0,119600.0,0.19230684]
[1752697722595,0.16558584,119610.0,119600.0,0.20776889]
[1752697722865,0.17394627,119610.0,119600.0,0.20776889]
[1752697723126,0.11334028,119610.0,119600.0,0.20976889]
[1752697723396,0.0022,119610.0,119600.0,1.21643446]
[1752697723905,0.0022,119610.0,119600.0,1.55643446]
[1752697723907,0.01417922,119620.0,119610.0,0.19229075]
[1752697724137,0.01417922,119620.0,119610.0,0.2579628]
[1752697724385,0.01426322,119620.0,119610.0,0.800205]
[1752697724641,0.01426322,119620.0,119610.0,0.4082928]
[1752697724889,0.01426322,119620.0,119610.0,0.65300112]
[1752697725160,0.01426322,119620.0,119610.0,0.80020112]
[1752697725811,0.01624322,119620.0,119610.0,0.20774892]
[1752697726037,0.04183819,119620.0,119610.0,0.20774892]
[1752697726252,0.01426322,119620.0,119610.0,0.60490112]
[1752697726475,0.01426322,119620.0,119610.0,0.66209171]
[1752697726699,0.01426322,119620.0,119610.0,0.65300112]
[1752697728199,0.01226322,119620.0,119610.0,0.65300112]
[1752697729808,0.01226322,119620.0,119610.0,0.63754295]
[1752697730013,0.01226322,119620.0,119610.0,0.24563075]
[1752697730226,0.01226322,119620.0,119610.0,0.63754295]
[1752697731496,0.00223289,119620.0,119610.0,0.26107185]
[1752697731716,0.00223289,119620.0,119610.0,0.65298405]
[1752697732248,0.00223289,119620.0,119610.0,0.26107185]
[1752697732451,0.00223289,119620.0,119610.0,0.65298405]
[1752697733799,0.012,119630.0,119620.0,0.19227468]
[1752697733999,0.012,119630.0,119620.0,0.80006798]
[1752697734426,0.012,119630.0,119620.0,0.40815578]
[1752697734785,0.012,119630.0,119620.0,0.80006798]
[1752697736518,0.012,119630.0,119620.0,0.80005772]
[1752697737373,0.012,119630.0,119620.0,0.80005335]
[1752697739125,0.012,119630.0,119620.0,0.40814115]
[1752697739148,0.012,119630.0,119620.0,0.80005335]
[1752697739344,0.012,119630.0,119620.0,0.40814115]
[1752697743869,0.012,119630.0,119620.0,0.80005335]
[1752697744072,0.02033861,119630.0,119620.0,0.35935102]
[1752697744274,0.01198,119630.0,119620.0,0.20771102]
[1752697744485,0.01198,119630.0,119620.0,0.35403102]
[1752697744694,0.56598852,119630.0,119620.0,0.19935143]
[1752697744908,0.57434748,119630.0,119620.0,0.2160704]
[1752697745118,0.74153018,119630.0,119620.0,0.19935164]
[1752697745369,0.88563346,119630.0,119620.0,0.01543634]
[1752697747277,0.06581897,119620.0,119610.0,4.07434813]
[1752697747503,0.17212375,119620.0,119610.0,4.09816292]
[1752697747726,0.17212375,119620.0,119610.0,4.08980291]
[1752697747727,0.73363235,119620.0,119610.0,4.08980291]
[1752697747947,0.73153738,119620.0,119610.0,4.08980291]
[1752697748173,0.72317779,119620.0,119610.0,4.08980291]
[1752697749042,0.72099925,119620.0,119610.0,3.89751181]
[1752697749489,0.32908705,119620.0,119610.0,3.89751181]
[1752697749705,0.87011925,119620.0,119610.0,3.89751181]
[1752697750141,0.32908705,119620.0,119610.0,3.89751181]
[1752697750394,0.47920705,119620.0,119610.0,3.89751181]
[1752697750614,0.33308705,119620.0,119610.0,3.89751181]
[1752697750832,0.47920705,119620.0,119610.0,3.89751181]
[1752697751053,0.47916705,119620.0,119610.0,4.07308233]
[1752697751272,0.72499925,119620.0,119610.0,4.07308233]
[1752697751492,0.72499925,119620.0,119610.0,4.08980284]
[1752697751493,0.87107925,119620.0,119610.0,4.08980284]
[1752697752162,0.15134945,119620.0,119610.0,4.09816285]
[1752697752345,0.32216277,119620.0,119610.0,4.09816285]
[1752697752596,0.3200678,119620.0,119610.0,4.09816285]
[1752697753055,0.3200678,119620.0,119610.0,4.08270807]
[1752697753277,0.66194255,119640.0,119630.0,2.83055693]
[1752697753490,0.66194255,119640.0,119630.0,2.84602001]
[1752697753491,1.23540503,119640.0,119630.0,2.84602001]
[1752697753698,1.62731723,119640.0,119630.0,2.8460192]
[1752697753904,1.67731723,119640.0,119630.0,2.8460192]
[1752697754121,0.89349283,119640.0,119630.0,2.8460192]
[1752697754314,1.67731723,119640.0,119630.0,2.8460192]
[1752697754530,1.62731723,119640.0,119630.0,2.8460192]
[1752697754758,1.23536503,119640.0,119630.0,2.8460192]
[1752697754975,1.08936503,119640.0,119630.0,2.8460192]
[1752697755186,1.23532503,119640.0,119630.0,2.8460192]
[1752697755413,0.84341283,119640.0,119630.0,2.8460192]
[1752697755625,1.23532503,119640.0,119630.0,2.8460192]
[1752697756240,1.26122503,119640.0,119630.0,2.8460192]
[1752697756453,1.14006503,119640.0,119630.0,2.8460192]
[1752697756661,1.28602503,119640.0,119630.0,2.8460192]
[1752697758559,1.23681972,119640.0,119630.0,2.8460192]
[1752697761790,1.23681972,119640.0,119630.0,2.84601128]
[1752697762496,1.23681972,119640.0,119630.0,2.8460116]
[1752697763180,0.84490752,119640.0,119630.0,2.8460116]
[1752697763418,1.23681972,119640.0,119630.0,2.8460116]
[1752697763659,1.24592609,119640.0,119630.0,2.8460116]
[1752697765538,0.85401389,119640.0,119630.0,2.8460116]
[1752697765769,1.24592609,119640.0,119630.0,2.8460116]
[1752697767217,1.54187828,119640.0,119630.0,2.8460116]
[1752697767445,1.59187828,119640.0,119630.0,2.8460116]
[1752697767662,1.73751828,119640.0,119630.0,2.8460116]
[1752697769023,1.09996609,119640.0,119630.0,2.8460116]
[1752697769243,1.29560608,119640.0,119630.0,2.8460116]
[1752697770230,1.34560608,119640.0,119630.0,2.8460116]
[1752697770494,1.34560608,119640.0,119630.0,2.83055693]
[1752697770787,1.35560608,119640.0,119630.0,2.84602691]
[1752697771457,0.96369388,119640.0,119630.0,2.84602691]
[1752697771762,1.35560608,119640.0,119630.0,2.84602691]
[1752697772003,1.38070908,119640.0,119630.0,2.84602691]
[1752697773565,1.38070908,119640.0,119630.0,2.84603515]
[1752697774612,0.98879688,119640.0,119630.0,2.84603515]
[1752697774847,1.38070908,119640.0,119630.0,2.84603515]
[1752697775348,1.33070908,119640.0,119630.0,2.84603515]
[1752697775554,1.38070908,119640.0,119630.0,2.84603515]
[1752697775764,1.33070908,119640.0,119630.0,2.84603515]
[1752697776408,0.93879688,119640.0,119630.0,2.84603515]
[1752697776613,1.33070908,119640.0,119630.0,2.84603515]
[1752697777525,0.79315688,119640.0,119630.0,2.84603515]
[1752697777743,0.74745688,119640.0,119630.0,2.84603515]
[1752697777954,1.23468909,119640.0,119630.0,2.86953515]
[1752697778167,1.23468909,119640.0,119630.0,2.84909515]
[1752697778384,1.22014824,119640.0,119630.0,2.87259515]
[1752697778611,1.17912113,119640.0,119630.0,2.87476448]
[1752697778817,1.15401813,119640.0,119630.0,2.87476448]
[1752697779033,1.16855898,119640.0,119630.0,2.87476448]
[1752697779237,1.16855898,119640.0,119630.0,3.02644907]
[1752697779455,0.63132678,119640.0,119630.0,3.05030399]
[1752697779685,0.29451214,119640.0,119630.0,3.09242191]
[1752697779891,0.30286998,119640.0,119630.0,3.10078021]
[1752697780107,0.69478211,119640.0,119630.0,3.10078021]
[1752697780315,0.68642378,119640.0,119630.0,3.10078021]
[1752697780529,0.10961665,119640.0,119630.0,3.10913847]
[1752697780741,0.10260525,119640.0,119630.0,3.10913847]
[1752697780976,0.24784525,119640.0,119630.0,3.50105067]
[1752697781196,0.24575028,119640.0,119630.0,3.10913847]
[1752697781410,0.24575028,119640.0,119630.0,3.50105067]
[1752697781625,0.10051028,119640.0,119630.0,3.50105067]
[1752697781830,0.15524,119640.0,119630.0,3.50105067]
[1752697782508,0.15924,119640.0,119630.0,3.50105067]
[1752697782924,0.01,119640.0,119630.0,3.10913847]
[1752697783131,0.01,119640.0,119630.0,3.50105067]
[1752697783574,0.01,119640.0,119630.0,3.64621067]
[1752697783783,0.011,119640.0,119630.0,3.64621067]
[1752697783994,0.011,119640.0,119630.0,3.10913847]
[1752697783995,0.15616,119640.0,119630.0,3.10913847]
[1752697784215,0.011,119640.0,119630.0,3.50105067]
[1752697784431,0.011,119640.0,119630.0,3.25425847]
[1752697784643,0.011,119640.0,119630.0,3.64617067]
[1752697785964,0.01,119640.0,119630.0,3.25425847]
[1752697786211,0.01,119640.0,119630.0,3.98617067]
[1752697787328,0.01,119640.0,119630.0,3.99491378]
[1752697788006,0.01,119640.0,119630.0,3.99485373]
[1752697788430,0.01,119640.0,119630.0,4.01950311]
[1752697788867,0.01,119640.0,119630.0,4.02050311]
[1752697789737,0.01,119640.0,119630.0,3.62859091]
[1752697789918,0.01,119640.0,119630.0,4.02050311]
[1752697791807,0.01,119640.0,119630.0,4.01176]
[1752697792012,0.01,119640.0,119630.0,3.6198478]
[1752697792221,0.01,119640.0,119630.0,4.01176]
[1752697792471,0.008,119640.0,119630.0,3.6198478]
[1752697792662,0.008,119640.0,119630.0,4.01176]
[1752697794624,0.008,119640.0,119630.0,4.01144]
[1752697795735,0.008,119640.0,119630.0,3.6195278]
[1752697795952,0.008,119640.0,119630.0,4.01144]
[1752697796637,0.008,119640.0,119630.0,4.01141383]
[1752697797260,0.008,119640.0,119630.0,4.01141339]
[1752697798144,0.008,119640.0,119630.0,3.61950119]
[1752697798353,0.008,119640.0,119630.0,4.01141339]
[1752697798554,0.008,119640.0,119630.0,3.61950119]
[1752697798764,0.008,119640.0,119630.0,4.01141339]
[1752697798984,0.008,119640.0,119630.0,3.61950119]
[1752697799418,0.008,119640.0,119630.0,4.01141339]
[1752697800316,0.008,119640.0,119630.0,3.61934119]
[1752697800525,0.008,119640.0,119630.0,4.01125339]
[1752697801374,0.008,119640.0,119630.0,3.61934119]
[1752697801594,0.008,119640.0,119630.0,4.01125339]
[1752697802456,0.21111337,119650.0,119640.0,0.19224253]
[1752697802674,0.21111337,119650.0,119640.0,0.65596337]
[1752697802675,0.21119727,119650.0,119640.0,0.65596337]
[1752697802891,0.21119727,119650.0,119640.0,0.66129337]
[1752697803103,0.06659727,119650.0,119640.0,0.66129337]
[1752697803320,0.06869224,119650.0,119640.0,0.66129337]
[1752697803525,0.07704932,119650.0,119640.0,0.66129337]
[1752697803729,0.06869224,119650.0,119640.0,0.66129337]
[1752697804665,0.06869224,119650.0,119640.0,0.66131111]
[1752697806620,0.07704932,119650.0,119640.0,0.66131111]
[1752697807046,0.07704932,119650.0,119640.0,0.26939891]
[1752697807276,0.22144932,119650.0,119640.0,0.66131111]
[1752697807486,0.21935435,119650.0,119640.0,0.66131111]
[1752697807698,0.21099727,119650.0,119640.0,0.66131111]
[1752697807906,0.21935435,119650.0,119640.0,0.66131111]
[1752697808093,0.21099727,119650.0,119640.0,0.66131111]
[1752697808343,0.22771164,119650.0,119640.0,0.66131111]
[1752697808768,0.22771157,119650.0,119640.0,0.66131111]
[1752697809391,0.23606893,119650.0,119640.0,0.66131111]
[1752697809580,0.22771157,119650.0,119640.0,0.66131111]
[1752697809823,0.23606893,119650.0,119640.0,0.66131111]
[1752697810026,0.24606893,119650.0,119640.0,0.66131111]
[1752697810236,0.09331157,119650.0,119640.0,0.66131111]
[1752697810450,0.23976654,119650.0,119640.0,0.66131111]
[1752697810674,0.2376715,119650.0,119640.0,0.66131111]
[1752697811616,0.24602879,119650.0,119640.0,0.66131111]
[1752697811878,0.25438622,119650.0,119640.0,0.66131111]
[1752697812112,0.2376715,119650.0,119640.0,0.66131111]
[1752697812322,0.24602879,119650.0,119640.0,0.26939891]
[1752697812530,0.2360001,119650.0,119640.0,0.66131111]
[1752697812743,0.22764281,119650.0,119640.0,0.66131111]
[1752697812948,0.2360001,119650.0,119640.0,0.66131111]
[1752697813149,0.2360001,119650.0,119640.0,0.64588473]
[1752697813383,0.2360001,119650.0,119640.0,0.66137472]
[1752697813568,0.24435753,119650.0,119640.0,0.66137472]
[1752697813969,0.24435753,119650.0,119640.0,0.26946264]
[1752697814175,0.24435753,119650.0,119640.0,0.66137484]
[1752697814392,0.2360001,119650.0,119640.0,0.66137484]
[1752697815047,0.24435746,119650.0,119640.0,0.66137484]
[1752697815708,0.2360001,119650.0,119640.0,0.66137484]
[1752697815928,0.24435746,119650.0,119640.0,0.66137484]
[1752697818343,0.21092858,119650.0,119640.0,0.66137484]
[1752697818772,0.21064858,119650.0,119640.0,0.66137484]
[1752697819463,0.06656858,119650.0,119640.0,0.80541484]
[1752697822097,0.06656858,119650.0,119640.0,1.19732307]
[1752697822303,0.06556858,119650.0,119640.0,1.19732307]
[1752697822519,0.05554099,119650.0,119640.0,1.69018476]
[1752697822719,6e-05,119660.0,119650.0,0.24842648]
[1752697823082,6e-05,119660.0,119650.0,0.49851815]
[1752697823334,6e-05,119660.0,119650.0,0.89043035]
[1752697823752,6e-05,119660.0,119650.0,2.12938435]
[1752697823961,6e-05,119660.0,119650.0,2.46938435]
[1752697825106,0.01741185,119670.0,119660.0,0.97872262]
[1752697825317,0.01741185,119670.0,119660.0,1.22567429]
[1752697825522,0.01741185,119670.0,119660.0,1.22873429]
[1752697825741,0.01741185,119670.0,119660.0,0.83682209]
[1752697825982,0.01741185,119670.0,119660.0,1.22873429]
[1752697826658,1e-08,119670.0,119660.0,1.22873429]
[1752697827345,1e-08,119670.0,119660.0,6.62064649]
[1752697827569,1e-08,119670.0,119660.0,1.62064649]
[1752697827788,0.002,119690.0,119680.0,1.03130268]
[1752697828012,0.00250178,119690.0,119680.0,1.27813435]
[1752697828222,0.00250178,119690.0,119680.0,3.82274135]
[1752697828442,0.00250178,119690.0,119680.0,4.16274135]
[1752697828662,0.00250178,119690.0,119680.0,2.99432435]
[1752697828879,0.00250178,119690.0,119680.0,2.81862835]
[1752697829107,0.00250178,119690.0,119680.0,1.48626334]
[1752697829341,0.00250178,119690.0,119680.0,1.84545134]
[1752697830876,0.00250178,119690.0,119680.0,1.84535775]
[1752697832161,0.01250178,119690.0,119680.0,1.84535775]
[1752697832616,0.00247891,119690.0,119680.0,1.84535775]
[1752697832824,0.01558167,119700.0,119690.0,0.24776222]
[1752697833041,0.01573214,119700.0,119690.0,0.8893125]
[1752697833458,0.01573214,119700.0,119690.0,1.3826655]
[1752697833713,0.01573214,119700.0,119690.0,1.38264638]
[1752697834142,1e-08,119700.0,119690.0,1.38264638]
[1752697835232,1e-08,119700.0,119690.0,1.40441217]
[1752697835445,1e-08,119710.0,119700.0,0.24694617]
[1752697835666,0.00012571,119710.0,119700.0,1.21613733]
[1752697835888,0.00012571,119710.0,119700.0,1.35965733]
[1752697836106,0.00012571,119710.0,119700.0,0.96774513]
[1752697836322,0.00012571,119710.0,119700.0,1.35965733]
[1752697837210,0.00012571,119710.0,119700.0,1.36165733]
[1752697838310,0.00012571,119710.0,119700.0,1.30307433]
[1752697838531,0.00012571,119710.0,119700.0,1.18291933]
[1752697838753,0.00012571,119710.0,119700.0,0.70928117]
[1752697838987,0.00012571,119710.0,119700.0,1.01425965]
[1752697839216,0.00012571,119710.0,119700.0,0.87490865]
[1752697840340,0.00012571,119710.0,119700.0,0.89024489]
[1752697840564,0.00012571,119710.0,119700.0,0.87490865]
[1752697840787,0.00012571,119710.0,119700.0,0.64599837]
[1752697841005,0.00012571,119710.0,119700.0,0.0173353]
[1752697841006,0.63280985,119710.0,119700.0,0.0173353]
[1752697841217,0.63071488,119710.0,119700.0,0.0173353]
[1752697841439,0.23880268,119710.0,119700.0,0.18442813]
[1752697841645,0.23044951,119710.0,119700.0,0.01734376]
[1752697841840,0.23044951,119710.0,119700.0,0.002]
[1752697842046,0.72241284,119710.0,119700.0,0.01734398]
[1752697842256,0.72041284,119710.0,119700.0,0.01734398]
[1752697842900,0.71393375,119710.0,119700.0,0.01734398]
[1752697843079,0.72228713,119710.0,119700.0,0.01734398]
[1752697843888,1.29128675,119710.0,119700.0,0.01734398]
[1752697844139,1.20552713,119710.0,119700.0,0.01534398]
[1752697844576,1.28061312,119710.0,119700.0,0.01534398]
[1752697844799,0.24487929,119700.0,119690.0,2.83055693]
[1752697845011,0.72230177,119700.0,119690.0,2.8459224]
[1752697846334,1.16230176,119700.0,119690.0,2.8459224]
[1752697847659,1.16230176,119700.0,119690.0,2.84594108]
[1752697848565,1.16230176,119700.0,119690.0,2.40304464]
[1752697848566,1.50901396,119700.0,119690.0,2.40304464]
[1752697848781,1.11710176,119700.0,119690.0,2.39334464]
[1752697849001,1.15956033,119700.0,119690.0,2.39334464]
[1752697849225,1.30268033,119700.0,119690.0,2.39334464]
[1752697849443,1.11710176,119700.0,119690.0,2.39334464]
[1752697849660,1.26022176,119700.0,119690.0,2.39334464]
[1752697850565,1.26022176,119700.0,119690.0,2.39336367]
[1752697850796,1.65213396,119700.0,119690.0,2.39336367]
[1752697851009,1.69526684,119700.0,119690.0,2.39336367]
[1752697851225,1.65213396,119700.0,119690.0,2.39336311]
[1752697852781,0.72518956,119700.0,119690.0,2.39336311]
[1752697852986,1.26014176,119700.0,119690.0,2.39336311]
[1752697853636,1.34590138,119700.0,119690.0,2.39336311]
[1752697853858,1.26014176,119700.0,119690.0,2.39336311]
[1752697854988,1.21014176,119700.0,119690.0,2.39335498]
[1752697855200,1.26014176,119700.0,119690.0,2.39335498]
[1752697856229,1.26014176,119700.0,119690.0,2.37796049]
[1752697856444,1.26014176,119700.0,119690.0,2.39334552]